bitfinex-derivatives/quotes_ETHF0:USTF0_20250430
["timestamp","ask_amount","ask_price","bid_price","bid_amount"]
[1746015476587,2.18589844,1807.8,1807.7,20.66974366]
[1746015476788,2.18531858,1807.8,1807.7,21.77584366]
[1746015476987,1.1061,1807.7,1807.6,1.10612]
[1746015477194,1.10608,1807.8,1807.7,20.66974366]
[1746015477392,1.70703607,1807.8,1807.7,20.66974366]
[1746015477691,2.22670153,1807.8,1807.7,1.1061]
[1746015478083,1.10612,1807.7,1807.6,1.10613]
[1746015478277,1.70706601,1807.7,1807.6,18.29326441]
[1746015478485,2.22658319,1807.7,1807.6,38.13434753]
[1746015478681,2.22656253,1807.7,1807.6,38.13434753]
[1746015478887,2.22654253,1807.7,1807.6,37.02821753]
[1746015479182,2.22654253,1807.7,1807.5,2.71058]
[1746015479387,1.12044253,1807.6,1807.5,38.63261753]
[1746015479690,2.22660253,1807.6,1807.5,23.38036366]
[1746015479988,1.12044253,1807.6,1807.5,23.38036366]
[1746015480577,1.12040478,1807.6,1807.5,23.38036366]
[1746015480782,1.12041436,1807.6,1807.5,23.38036366]
[1746015481280,1.12045114,1807.6,1807.5,23.38036366]
[1746015481480,1.12045012,1807.6,1807.5,23.38036366]
[1746015481677,1.12044065,1807.6,1807.5,23.38036366]
[1746015481881,2.22660382,1807.6,1807.5,23.38036366]
[1746015482077,2.22660377,1807.6,1807.5,2.71062]
[1746015482282,2.22642666,1807.6,1807.5,2.71062]
[1746015482479,2.22643165,1807.6,1807.5,2.71062]
[1746015482678,2.22643165,1807.6,1807.0,64.83619]
[1746015482679,12.09348165,1807.6,1807.0,21.27]
[1746015482979,4.31426,1807.1,1807.0,21.27]
[1746015483294,3.80854817,1807.1,1807.0,22.37653]
[1746015483591,5.4345149,1807.1,1807.0,22.37653]
[1746015483780,4.3280549,1807.1,1807.0,22.37653]
[1746015484390,5.43420692,1807.1,1807.0,22.8538]
[1746015484587,10.43420692,1807.1,1807.0,21.27]
[1746015484787,5.43420692,1807.1,1807.0,21.27]
[1746015484988,9.32120692,1807.1,1807.0,21.27]
[1746015485191,9.32120692,1807.1,1807.0,22.9817]
[1746015485982,14.32120692,1807.1,1807.0,22.9817]
[1746015486183,14.32120692,1807.1,1807.0,21.27]
[1746015487790,9.32120692,1807.1,1807.0,21.27]
[1746015487993,14.31051378,1807.1,1807.0,21.27]
[1746015488395,14.31051378,1807.1,1807.0,20.13394]
[1746015488594,1.10695,1806.3,1806.2,1.93962]
[1746015488795,4.90449705,1806.3,1806.2,18.49307387]
[1746015488990,3.79754705,1806.3,1806.2,40.26983753]
[1746015489196,5.42400378,1806.3,1806.2,40.26983753]
[1746015489785,1.10925378,1806.3,1806.2,40.26983753]
[1746015489993,4.31705378,1806.3,1806.2,41.87053753]
[1746015490192,5.42400378,1806.3,1806.2,45.69853753]
[1746015490394,4.31705378,1806.3,1806.2,45.69853753]
[1746015490800,1.10925378,1806.3,1806.2,50.69853753]
[1746015491301,1.10925378,1806.3,1806.2,45.69853753]
[1746015491697,1.11094837,1806.3,1806.2,45.69853753]
[1746015493493,1.06572623,1806.3,1806.2,50.69853753]
[1746015493700,4.99471,1806.7,1806.6,1.10677]
[1746015493899,1.1067,1806.8,1806.6,36.0333098]
[1746015494101,1.1067,1806.8,1806.7,1.10667]
[1746015494297,1.1067,1806.8,1806.7,37.5175798]
[1746015494494,1.1067,1806.8,1806.7,39.81448753]
[1746015494693,1.1067,1806.8,1806.7,18.03807387]
[1746015494895,1.1067,1806.8,1806.7,1.6796]
[1746015495092,7.0968,1806.9,1806.7,23.45605366]
[1746015495393,8.20339,1806.9,1806.8,34.7313098]
[1746015495590,8.20339,1806.9,1806.8,20.39300017]
[1746015496990,4.99559,1806.9,1806.8,34.45456631]
[1746015497190,3.2078,1807.1,1806.8,36.75147404]
[1746015497404,4.31426,1807.1,1807.0,20.39300017]
[1746015497791,1.10653,1807.0,1806.9,1.59683565]
[1746015497990,1.10653,1807.0,1806.9,24.28674355]
[1746015498299,1.10651,1807.1,1806.9,38.34830969]
[1746015498603,1.10646,1807.1,1807.0,35.56104631]
[1746015498803,1.10646,1807.1,1807.0,37.14924631]
[1746015499002,4.31426,1807.1,1807.0,38.33967404]
[1746015499195,4.31426,1807.1,1807.0,39.44620404]
[1746015499391,3.2078,1807.1,1807.0,39.44620404]
[1746015499707,3.2078,1807.1,1807.0,44.44620404]
[1746015500299,3.2078,1807.1,1807.0,39.44620404]
[1746015500497,3.2078,1807.4,1807.0,43.33967404]
[1746015500703,4.31401,1807.6,1807.5,1.10622]
[1746015500903,3.2078,1807.6,1807.5,3.68872]
[1746015501105,3.2078,1807.6,1807.5,40.44019404]
[1746015501699,4.31396,1807.6,1807.5,22.97550017]
[1746015501898,4.31396,1807.6,1807.5,1.7065]
[1746015503297,3.2078,1807.6,1807.5,39.56419404]
[1746015504300,1.10615,1807.7,1807.6,1.10616]
[1746015504492,4.31395,1807.7,1807.6,35.56072631]
[1746015504699,4.31395,1807.7,1807.6,36.75147404]
[1746015505202,1.10616,1807.6,1807.5,1.7065]
[1746015505402,1.10616,1807.6,1807.5,4.00340773]
[1746015505705,1.52566385,1807.6,1807.5,34.45456631]
[1746015505905,2.02156296,1807.6,1807.5,34.45456631]
[1746015506705,2.02156296,1807.6,1807.5,35.56078631]
[1746015506907,2.02166817,1807.6,1807.5,35.56078631]
[1746015507403,0.91550817,1807.6,1807.5,35.56078631]
[1746015507805,2.02166817,1807.6,1807.5,25.68542646]
[1746015508198,2.02178108,1807.6,1807.5,24.57920646]
[1746015508399,2.02178108,1807.6,1807.5,25.68542646]
[1746015508702,0.91562108,1807.6,1807.5,25.68542646]
[1746015509207,0.49589911,1807.6,1807.5,25.68542646]
[1746015509406,5.45536068,1807.7,1807.6,1.10616]
[1746015509594,5.45536068,1807.7,1807.6,25.68536646]
[1746015509798,5.45536068,1807.7,1807.6,30.68536646]
[1746015510400,5.45536068,1807.7,1807.6,25.68536646]
[1746015510695,5.45536068,1807.7,1807.6,30.68536646]
[1746015511601,5.45536068,1807.7,1807.6,25.68536646]
[1746015512605,6.16058922,1807.7,1807.6,25.68536646]
[1746015513009,7.26668922,1807.7,1807.6,24.57920646]
[1746015513201,1.10616,1807.6,1807.5,2.83357]
[1746015513600,1.5251971,1807.6,1807.5,27.41277646]
[1746015513797,1.52519712,1807.6,1807.5,26.30660646]
[1746015514004,1.52519712,1807.6,1807.5,15.78896614]
[1746015514201,3.17979712,1807.6,1807.5,16.89518614]
[1746015514604,1.52519712,1807.6,1807.5,16.89518614]
[1746015514909,1.10616,1807.6,1807.5,27.41282646]
[1746015515107,21.67573791,1807.6,1807.5,27.41282646]
[1746015515308,21.67573791,1807.6,1807.5,1.10622]
[1746015515605,1.10622,1807.5,1807.4,5.88563]
[1746015515808,2.83282,1807.5,1807.4,5.88563]
[1746015516009,2.83282,1807.5,1807.4,21.20118704]
[1746015516707,2.83282,1807.5,1807.4,19.25255704]
[1746015516908,6.45957434,1807.5,1807.4,19.25255704]
[1746015517305,6.04062,1807.5,1807.4,19.25255704]
[1746015517511,6.4596298,1807.5,1807.4,19.25255704]
[1746015518113,6.4596298,1807.5,1807.4,20.35883704]
[1746015519514,25.12994169,1807.5,1807.4,20.35883704]
[1746015520512,25.12994169,1807.5,1807.4,19.25255704]
[1746015520718,1.10634,1807.4,1807.3,1.10632]
[1746015521012,3.20998422,1807.4,1807.3,20.35887704]
[1746015521311,1.10653,1807.0,1806.9,1.11520565]
[1746015521516,3.2078,1807.0,1806.9,1.11520565]
[1746015521710,4.8054719,1807.0,1806.9,20.36776269]
[1746015521906,4.8054719,1807.0,1806.9,19.26119269]
[1746015522110,14.16207571,1807.0,1806.9,5.65e-06]
[1746015522322,15.86937571,1807.0,1806.9,5.65e-06]
[1746015523129,10.03547571,1807.0,1806.9,5.65e-06]
[1746015523324,9.16207571,1807.0,1806.9,5.65e-06]
[1746015523516,5.22507571,1807.0,1806.9,19.25256269]
[1746015524525,5.22507571,1807.0,1806.9,5.65e-06]
[1746015525729,11.42476889,1807.0,1806.9,5.65e-06]
[1746015528823,16.42476889,1807.0,1806.9,5.65e-06]
[1746015529027,16.86358364,1807.0,1806.9,5.65e-06]
[1746015529219,16.42482213,1807.0,1806.9,5.65e-06]
[1746015529419,10.93035749,1807.0,1806.9,5.65e-06]
[1746015529829,12.53325749,1807.0,1806.9,5.65e-06]
[1746015530829,12.53297647,1807.0,1806.9,5.65e-06]
[1746015532431,1.10689,1806.4,1806.3,0.8186]
[1746015532632,4.31469,1806.4,1806.3,10.51764032]
[1746015532932,1.10702,1806.2,1806.1,1.7195]
[1746015533130,1.10708,1806.1,1806.0,3.828]
[1746015533333,3.74650803,1806.1,1806.0,2.61668]
[1746015533928,3.3277219,1806.1,1806.0,21.86923704]
[1746015534326,1.5982219,1806.1,1806.0,22.97637704]
[1746015534829,1.5982219,1806.1,1806.0,25.42957704]
[1746015535631,1.5982219,1806.1,1806.0,24.32243704]
[1746015536132,1.5982219,1806.1,1806.0,25.42957704]
[1746015536425,0.4911419,1806.1,1806.0,33.63737704]
[1746015536626,0.4911419,1806.1,1806.0,25.42957704]
[1746015537027,1.5982219,1806.1,1806.0,24.32243704]
[1746015537634,3.3396219,1806.1,1806.0,24.32243704]
[1746015537932,3.3396219,1806.1,1806.0,13.13432032]
[1746015539232,3.3396219,1806.1,1806.0,2.61668]
[1746015540122,3.3396219,1806.1,1805.8,1.6411]
[1746015540123,1.1072,1805.9,1805.8,1.6411]
[1746015540327,4.315,1805.9,1805.8,1.6411]
[1746015540530,1.1072,1805.9,1805.8,20.89365704]
[1746015540937,4.8061419,1805.9,1805.8,20.89365704]
[1746015541239,1.10726,1805.8,1805.7,0.8043]
[1746015541433,2.69506,1805.8,1805.7,9.53921672]
[1746015541625,1.10726,1805.8,1805.7,20.05685704]
[1746015541826,1.10726,1805.8,1805.7,15.82072817]
[1746015542128,1.5984019,1805.8,1805.7,19.64872817]
[1746015542542,3.3494019,1805.8,1805.7,19.64872817]
[1746015542836,3.3494019,1805.8,1805.7,3.828]
[1746015544134,7.2824019,1805.8,1805.7,3.828]
[1746015544933,5.5314019,1805.8,1805.7,3.828]
[1746015545136,7.2824019,1805.8,1805.7,3.828]
[1746015546043,1.10779,1805.0,1804.8,3.3552]
[1746015546243,1.10779,1805.0,1804.9,5.30308785]
[1746015546439,4.31553,1805.1,1804.9,17.51142817]
[1746015546736,4.31553,1805.1,1805.0,15.82072817]
[1746015546941,3.2078,1805.1,1804.3,3.2078]
[1746015547131,4.31569,1804.8,1804.4,4.46096]
[1746015547337,1.10789,1804.8,1804.6,1.10795]
[1746015547538,8.8091,1805.0,1804.8,1.10787]
[1746015547745,8.8091,1805.0,1804.7,18.33832817]
[1746015547746,3.2078,1805.0,1804.9,18.61923817]
[1746015548040,3.2078,1805.4,1805.0,2.76938]
[1746015548232,3.2078,1805.4,1805.3,16.92829817]
[1746015548943,3.69635352,1805.4,1805.3,16.92829817]
[1746015549143,4.80386352,1805.4,1805.3,21.39632817]
[1746015549337,3.69635352,1805.4,1805.3,22.50389817]
[1746015550436,0.48855352,1805.4,1805.3,22.50389817]
[1746015550643,0.48855352,1805.4,1805.3,25.71169817]
[1746015550946,0.48855352,1805.4,1805.3,30.71169817]
[1746015551843,4.31509,1805.8,1805.7,1.10732]
[1746015552040,4.31509,1805.8,1805.7,15.82072817]
[1746015552240,6.02119,1805.8,1805.7,19.64872817]
[1746015552740,6.02119,1805.8,1805.7,3.828]
[1746015553948,2.81339,1805.8,1805.7,3.828]
[1746015554150,6.02119,1805.8,1805.7,3.828]
[1746015554845,6.02119,1805.8,1805.7,4.93532]
[1746015555234,6.02119,1805.8,1805.7,20.75604817]
[1746015555543,2.81339,1805.8,1805.7,20.75604817]
[1746015555946,6.02119,1805.8,1805.7,20.75604817]
[1746015556144,6.02116,1805.8,1805.7,20.75604817]
[1746015556345,3.2078,1805.8,1805.7,20.75604817]
[1746015557249,4.31506,1805.8,1805.7,19.64872817]
[1746015557554,4.31506,1805.8,1805.7,12.5880249]
[1746015557742,4.31506,1805.8,1805.7,13.6953449]
[1746015558348,4.31506,1805.8,1805.7,17.5233449]
[1746015558537,3.2078,1805.8,1805.7,17.5233449]
[1746015558741,3.2078,1805.8,1805.7,22.5233449]
[1746015559354,4.31495,1806.0,1805.9,1.1072]
[1746015559650,4.73439423,1806.0,1805.9,13.6952249]
[1746015560045,4.73439423,1806.0,1805.9,17.5232249]
[1746015560252,4.73439423,1806.0,1805.9,19.1514249]
[1746015560852,3.2078,1806.0,1805.9,19.1514249]
[1746015561058,1.10709,1806.1,1806.0,1.10708]
[1746015561247,1.52693878,1806.1,1806.0,15.3670049]
[1746015561446,2.74569,1806.1,1806.0,15.3670049]
[1746015561645,3.65735716,1806.2,1806.0,15.3670049]
[1746015561847,4.76437716,1806.2,1806.1,14.2599249]
[1746015562147,10.03064248,1806.2,1806.1,14.2599249]
[1746015562748,10.03064248,1806.2,1806.1,2.77898]
[1746015563149,6.37328532,1806.2,1806.1,2.77898]
[1746015563352,3.16548532,1806.2,1806.1,15.3670049]
[1746015563743,3.65215248,1806.2,1806.1,15.3670049]
[1746015563945,3.6523146,1806.2,1806.1,15.3670049]
[1746015564250,6.8601146,1806.2,1806.1,15.3670049]
[1746015564553,3.6523146,1806.2,1806.1,15.3670049]
[1746015565049,6.8601146,1806.2,1806.1,15.3670049]
[1746015565245,5.7530946,1806.2,1806.1,15.3670049]
[1746015565954,4.1144946,1806.2,1806.1,15.3670049]
[1746015566153,0.48666716,1806.2,1806.1,15.3670049]
[1746015566948,0.48666716,1806.2,1806.1,16.1739049]
[1746015569553,4.31475,1806.4,1806.1,15.0668249]
[1746015569749,5.93095,1806.4,1806.3,13.6949749]
[1746015570156,5.93095,1806.4,1806.3,17.5229749]
[1746015570351,6.35059388,1806.4,1806.3,19.1989749]
[1746015570553,6.41716914,1806.4,1806.3,19.1989749]
[1746015571660,6.41716914,1806.4,1806.3,5.504]
[1746015571955,6.83668879,1806.4,1806.3,3.828]
[1746015572158,10.49823447,1806.4,1806.3,3.828]
[1746015573361,10.49818245,1806.4,1806.3,3.828]
[1746015573553,10.07871482,1806.4,1806.3,3.828]
[1746015574358,10.49813424,1806.4,1806.3,3.828]
[1746015574861,13.03477312,1806.4,1806.3,3.828]
[1746015575255,13.03473709,1806.4,1806.3,3.828]
[1746015577260,7.54241856,1806.4,1806.3,3.828]
[1746015578961,7.12303517,1806.4,1806.3,3.828]
[1746015579160,7.54326991,1806.4,1806.3,3.828]
[1746015579958,24.90319753,1806.4,1806.3,3.828]
[1746015581457,23.28693753,1806.4,1806.3,4.93495]
[1746015581668,23.28693753,1806.4,1806.3,3.828]
[1746015581962,5.92700991,1806.4,1806.3,3.828]
[1746015582162,7.51840991,1806.4,1806.3,3.828]
[1746015582864,7.51887526,1806.4,1806.3,3.828]
[1746015583357,2.71967526,1806.4,1806.3,17.5229749]
[1746015583962,4.31107526,1806.4,1806.3,19.1148749]
[1746015584465,7.51887526,1806.4,1806.3,19.1148749]
[1746015585264,6.81300923,1806.4,1806.3,19.1148749]
[1746015585467,5.70611923,1806.4,1806.3,19.1148749]
[1746015585768,6.81300923,1806.4,1806.3,19.1148749]
[1746015586766,5.70611923,1806.4,1806.3,19.1148749]
[1746015586962,4.11471923,1806.4,1806.3,24.1148749]
[1746015587163,0.48621914,1806.4,1806.3,24.1148749]
[1746015588061,1.19208517,1806.4,1806.3,24.1148749]
[1746015589267,1.19208517,1806.4,1806.3,20.2868749]
[1746015591266,0.48621914,1806.4,1806.3,61.0868749]
[1746015591971,6.87364788,1806.7,1806.6,1.10677]
[1746015592165,8.40159433,1806.7,1806.6,13.6947949]
[1746015592560,8.40159433,1806.7,1806.6,14.5696949]
[1746015593670,7.29488433,1806.7,1806.6,14.5696949]
[1746015593869,8.40159433,1806.7,1806.6,14.5696949]
[1746015594064,12.22959433,1806.7,1806.6,14.5696949]
[1746015594272,12.93532577,1806.7,1806.6,14.5696949]
[1746015594771,8.19957932,1806.7,1806.6,14.5696949]
[1746015595160,4.37157932,1806.7,1806.6,21.2799949]
[1746015597673,4.37157932,1806.7,1806.6,16.2799949]
[1746015598769,7.98021788,1807.0,1806.9,1.10659]
[1746015598972,7.98021788,1807.0,1806.9,13.6946149]
[1746015599363,3.66584788,1807.0,1806.9,13.6946149]
[1746015599574,3.66584788,1807.0,1806.9,15.3205149]
[1746015599770,4.77237788,1807.0,1806.9,15.3205149]
[1746015599969,5.19297682,1807.0,1806.9,15.3205149]
[1746015600168,9.98007893,1807.0,1806.9,2.07038458]
[1746015600474,1.10665,1806.8,1806.7,1.1067]
[1746015600773,1.10671,1806.7,1806.6,1.98167]
[1746015600978,3.27821105,1806.7,1806.6,4.05205458]
[1746015601368,3.27829748,1806.7,1806.6,4.05205458]
[1746015601769,1.10677,1806.6,1806.5,0.8251]
[1746015601973,6.48615748,1806.6,1806.5,2.89548458]
[1746015602374,6.48615748,1806.6,1806.5,4.00231458]
[1746015602972,3.62848748,1806.6,1806.5,14.5199549]
[1746015603177,3.2078,1806.6,1806.5,14.5199549]
[1746015603378,10.52058572,1806.6,1806.5,14.5199549]
[1746015603575,12.69146184,1806.6,1806.5,14.5199549]
[1746015604179,12.69146184,1806.6,1806.5,18.3479549]
[1746015604180,13.17409985,1806.6,1806.5,18.3479549]
[1746015604877,13.17409985,1806.6,1806.5,14.34564032]
[1746015605076,18.17409816,1806.6,1806.5,2.85322734]
[1746015605272,2.76728,1806.4,1806.1,1.10706]
[1746015605472,4.31485,1806.2,1806.1,11.62470032]
[1746015605679,4.73552443,1806.2,1806.1,11.62470032]
[1746015605876,4.73552443,1806.2,1806.1,13.6950849]
[1746015606078,6.96836244,1806.2,1806.1,13.6950849]
[1746015606682,6.96836244,1806.2,1806.1,12.5880249]
[1746015606978,6.96836906,1806.2,1806.1,12.5880249]
[1746015607381,6.96836906,1806.2,1806.1,3.17746458]
[1746015607575,6.96836906,1806.2,1806.1,2.07038458]
[1746015607775,6.96836906,1806.2,1806.1,3.17746458]
[1746015607975,13.17439583,1806.2,1806.1,13.6951049]
[1746015608784,13.1744133,1806.2,1806.1,13.6951049]
[1746015609384,13.1744133,1806.2,1806.1,15.4384049]
[1746015609681,13.1744133,1806.2,1806.1,14.3313249]
[1746015609882,13.1744133,1806.2,1806.1,12.5880249]
[1746015610477,1.10708,1806.1,1806.0,3.828]
[1746015610780,3.10615995,1806.1,1806.0,3.828]
[1746015611181,3.58879796,1806.1,1806.0,3.828]
[1746015612380,1.10732,1805.7,1805.6,47.40983]
[1746015612688,1.58995801,1805.7,1805.6,47.40983]
[1746015612877,1.58995801,1805.7,1805.6,59.9978549]
[1746015613383,3.25995801,1805.7,1805.6,59.9978549]
[1746015613883,3.25995801,1805.7,1805.6,61.7231549]
[1746015614878,3.25995801,1805.7,1805.6,20.9231549]
[1746015615280,3.25995801,1805.7,1805.6,17.5693549]
[1746015616085,6.46775801,1805.7,1805.6,16.4620249]
[1746015616284,6.46775801,1805.7,1805.6,12.5880249]
[1746015616788,6.46775801,1805.7,1805.6,13.6954049]
[1746015616983,5.36043801,1805.7,1805.6,13.6954049]
[1746015617180,2.15263801,1805.7,1805.6,13.6954049]
[1746015617380,6.5277036,1805.7,1805.6,15.2942049]
[1746015617582,7.6350236,1805.7,1805.6,18.4135049]
[1746015618289,7.63357116,1805.7,1805.6,18.4135049]
[1746015619486,7.63357116,1805.7,1805.6,7.89586458]
[1746015619687,7.63357116,1805.7,1805.6,18.4135049]
[1746015620986,7.63357116,1805.7,1805.6,12.5880249]
[1746015621187,10.13578171,1805.7,1805.6,13.6954049]
[1746015621787,10.13578171,1805.7,1805.6,15.3832049]
[1746015621981,9.02846171,1805.7,1805.6,15.3832049]
[1746015622187,8.46578171,1805.7,1805.6,15.3832049]
[1746015624188,4.79630557,1805.7,1805.6,15.3832049]
[1746015625085,3.68898557,1805.7,1805.6,15.3832049]
[1746015625286,4.79630557,1805.7,1805.6,15.3832049]
[1746015625489,3.66947614,1805.8,1805.7,1.10732]
[1746015625682,3.66947614,1805.8,1805.7,19.2377449]
[1746015625884,3.66947614,1805.8,1805.7,24.2377449]
[1746015626190,3.66947614,1805.8,1805.7,28.0657449]
[1746015626883,1.10721,1805.9,1805.7,26.9584249]
[1746015627082,6.02759,1806.0,1805.9,1.1072]
[1746015627490,6.02759,1806.0,1805.9,13.6952249]
[1746015628191,6.02759,1806.0,1805.9,17.5232249]
[1746015628393,4.9204,1806.0,1805.9,20.5615249]
[1746015628591,3.2078,1806.0,1805.9,20.5615249]
[1746015631291,7.98433614,1806.2,1806.1,1.10708]
[1746015631493,8.40493818,1806.2,1806.1,13.6951049]
[1746015631683,10.09353818,1806.2,1806.1,3.17746458]
[1746015632397,10.09353818,1806.2,1806.1,4.76626458]
[1746015633297,10.10917438,1806.2,1806.1,4.76626458]
[1746015634100,7.31351438,1806.2,1806.1,15.2839049]
[1746015634397,8.42053438,1806.2,1806.1,15.2839049]
[1746015634596,7.31351438,1806.2,1806.1,15.2839049]
[1746015635397,4.10571438,1806.2,1806.1,15.2839049]
[1746015635699,3.66947614,1806.2,1806.1,15.2839049]
[1746015636193,6.61116421,1806.3,1806.2,1.10702]
[1746015636392,7.04757895,1806.3,1806.2,13.6950449]
[1746015637092,7.04754313,1806.3,1806.2,17.5230449]
[1746015637686,1.54332892,1806.3,1806.2,17.5230449]
[1746015638098,2.02131893,1806.3,1806.2,17.5230449]
[1746015638498,0.91436893,1806.3,1806.2,17.5230449]
[1746015640003,2.02131893,1806.3,1806.2,17.5230449]
[1746015640303,0.91436893,1806.3,1806.2,17.5230449]
[1746015641705,0.47799001,1806.3,1806.2,17.5230449]
[1746015644702,0.47799001,1806.3,1806.2,7.00540458]
[1746015644902,1.58494001,1806.3,1806.2,17.5230449]
[1746015645101,0.47799001,1806.3,1806.2,17.5230449]
[1746015646512,1.58494001,1806.3,1806.2,17.5230449]
[1746015646712,1.58494001,1806.3,1806.2,4.93502]
[1746015646907,7.79501349,1806.3,1806.2,4.93502]
[1746015648111,8.23101347,1806.3,1806.2,4.93502]
[1746015648410,8.23101347,1806.3,1806.2,17.5230449]
[1746015649806,7.12413862,1806.3,1806.2,17.5230449]
[1746015650011,8.23108862,1806.3,1806.2,17.5230449]
[1746015650211,7.79501349,1806.3,1806.2,17.5230449]
[1746015650413,8.23119161,1806.3,1806.2,17.5230449]
[1746015651014,7.12424161,1806.3,1806.2,17.5230449]
[1746015651614,8.23119161,1806.3,1806.2,19.1736449]
[1746015651917,9.91679161,1806.3,1806.2,17.5230449]
[1746015652212,9.91699955,1806.3,1806.2,17.5230449]
[1746015653210,9.91699955,1806.3,1806.2,16.4160249]
[1746015653416,9.91699955,1806.3,1806.2,11.57154037]
[1746015654217,9.91699955,1806.3,1806.2,15.39954037]
[1746015655011,9.91699955,1806.3,1806.2,17.05824037]
[1746015655315,9.91699955,1806.3,1806.2,18.73244037]
[1746015655505,8.81004955,1806.3,1806.2,18.73244037]
[1746015656112,9.91699955,1806.3,1806.2,18.73244037]
[1746015656920,8.81004955,1806.3,1806.2,18.73244037]
[1746015657119,9.91699955,1806.3,1806.2,18.73244037]
[1746015657919,9.91763867,1806.3,1806.2,18.73244037]
[1746015659121,9.91763867,1806.3,1806.2,17.07374037]
[1746015659922,13.12550855,1806.3,1806.2,3.828]
[1746015662927,13.12546602,1806.3,1806.2,3.828]
[1746015663925,1.10702,1806.2,1806.1,1.10703]
[1746015664125,3.27037253,1806.2,1806.1,1.10703]
[1746015664530,3.74836254,1806.2,1806.1,1.10703]
[1746015664927,3.74824118,1806.2,1806.1,1.10703]
[1746015665229,1.10708,1806.1,1806.0,10.48778]
[1746015665418,3.19221117,1806.1,1806.0,10.48778]
[1746015665623,3.19221117,1806.1,1806.0,20.95230037]
[1746015665823,3.67020118,1806.1,1806.0,20.95230037]
[1746015666828,3.67016558,1806.1,1806.0,20.95230037]
[1746015667020,3.67016558,1806.1,1806.0,16.7168174]
[1746015667829,3.67016558,1806.1,1806.0,6.25229703]
[1746015668127,4.37602485,1806.1,1806.0,6.25229703]
[1746015668328,4.37602485,1806.1,1806.0,16.7168174]
[1746015668629,4.37598434,1806.1,1806.0,16.7168174]
[1746015668822,4.37598434,1806.1,1806.0,15.6097374]
[1746015669020,1.10728,1805.9,1805.6,2.76847]
[1746015669221,4.31508,1805.9,1805.8,11.57172037]
[1746015669428,6.94776779,1805.9,1805.8,11.57172037]
[1746015669628,6.94776779,1805.9,1805.8,1.1072]
[1746015669820,6.94776779,1805.9,1805.8,11.57172037]
[1746015670016,4.12258779,1805.9,1805.8,13.16822037]
[1746015670222,0.91478779,1805.9,1805.8,16.99622037]
[1746015671427,8.97211363,1805.9,1805.8,16.99622037]
[1746015671833,8.53531585,1805.9,1805.8,16.99622037]
[1746015674921,6.70497329,1805.9,1805.8,16.99622037]
[1746015675325,3.4150733,1805.9,1805.8,16.99622037]
[1746015675835,3.4150733,1805.9,1805.8,25.76422037]
[1746015677934,7.35146657,1806.1,1805.8,25.76422037]
[1746015677935,7.35146657,1806.1,1806.0,1.10714]
[1746015678134,7.35146657,1806.1,1806.0,11.57166037]
[1746015678636,7.35146657,1806.1,1806.0,15.03066037]
[1746015678825,10.61994076,1806.1,1806.0,11.57166037]
[1746015679229,10.61994076,1806.1,1806.0,15.39966037]
[1746015679935,10.61995079,1806.1,1806.0,15.39966037]
[1746015680232,9.51287079,1806.1,1806.0,15.39966037]
[1746015680428,7.81447079,1806.1,1806.0,15.39966037]
[1746015680629,7.81447079,1806.1,1806.0,17.05666037]
[1746015681141,0.46300422,1806.1,1806.0,17.05666037]
[1746015681538,2.12310422,1806.1,1806.0,17.05666037]
[1746015681733,1.6601,1806.1,1806.0,17.05666037]
[1746015681931,3.23009938,1806.1,1806.0,17.05666037]
[1746015682127,2.12301938,1806.1,1806.0,17.05666037]
[1746015683639,2.12301762,1806.1,1806.0,17.05666037]
[1746015684435,9.47448419,1806.1,1806.0,17.05666037]
[1746015686741,10.58156419,1806.1,1806.0,17.05666037]
[1746015687344,11.05540951,1806.1,1806.0,17.05666037]
[1746015687529,11.05551787,1806.1,1806.0,15.39966037]
[1746015687731,11.05551787,1806.1,1806.0,12.21234037]
[1746015687934,19.26331787,1806.1,1806.0,1.42515829]
[1746015688336,20.95151787,1806.1,1806.0,1.42515829]
[1746015691543,23.05699041,1806.1,1806.0,1.42515829]
[1746015691745,18.05699041,1806.1,1806.0,1.42515829]
[1746015694753,1.10725,1805.9,1805.7,6.05711]
[1746015695043,1.10725,1805.9,1805.8,1.10726]
[1746015695244,1.5686508,1805.9,1805.8,11.57178037]
[1746015695445,3.65356705,1805.9,1805.8,11.57178037]
[1746015696147,3.65356705,1805.9,1805.8,15.39978037]
[1746015696847,6.86136705,1805.9,1805.8,15.39978037]
[1746015698848,3.65356705,1805.9,1805.8,15.39978037]
[1746015700441,11.70998647,1805.9,1805.8,15.39978037]
[1746015702449,11.70998647,1805.9,1805.8,14.29252037]
[1746015702643,14.91778647,1805.9,1805.8,3.828]
[1746015703046,1.10744,1805.5,1805.4,0.27688559]
[1746015703246,8.4846408,1805.5,1805.4,0.27688559]
[1746015703545,1.10787,1804.9,1804.8,1.10786]
[1746015703747,1.56835663,1804.9,1804.8,22.66118725]
[1746015703945,2.04137288,1804.9,1804.8,22.66118725]
[1746015704141,0.93350288,1804.9,1804.8,26.48918725]
[1746015704342,0.47301625,1804.9,1804.8,26.48918725]
[1746015704552,0.93291456,1804.9,1804.8,26.48918725]
[1746015704854,2.04072456,1804.9,1804.8,25.38132725]
[1746015705058,2.04072456,1804.9,1804.8,26.48919725]
[1746015705353,1.58082625,1804.9,1804.8,26.48919725]
[1746015705854,2.04029263,1804.9,1804.8,26.48919725]
[1746015706054,2.04029366,1804.9,1804.8,26.48919725]
[1746015706248,3.25732625,1804.9,1804.8,26.48919725]
[1746015706648,2.14951625,1804.9,1804.8,26.48919725]
[1746015706851,2.14951625,1804.9,1804.8,28.08059725]
[1746015707148,0.47301625,1804.9,1804.8,28.08059725]
[1746015707654,1.17904539,1804.9,1804.8,16.99179037]
[1746015709156,2.28685539,1804.9,1804.8,16.99179037]
[1746015709458,4.01835539,1804.9,1804.8,16.99179037]
[1746015709656,4.01835539,1804.9,1804.8,15.40039037]
[1746015710055,4.01835539,1804.9,1804.8,3.828]
[1746015710256,3.31232625,1804.9,1804.8,3.828]
[1746015711259,3.31232625,1804.9,1804.8,4.93587]
[1746015711954,3.31232625,1804.9,1804.8,3.828]
[1746015712757,3.31232625,1804.9,1804.8,4.93587]
[1746015712956,3.31232625,1804.9,1804.8,3.828]
[1746015713154,11.99532625,1804.9,1804.8,3.828]
[1746015713356,12.45340908,1804.9,1804.8,3.828]
[1746015713955,2.76969,1804.8,1803.7,47.6908]
[1746015714150,4.31616,1804.1,1804.0,1.10837]
[1746015714353,1.10837,1804.0,1803.9,11.57295037]
[1746015714556,1.6763,1804.0,1803.9,11.57295037]
[1746015714751,2.14931625,1804.0,1803.9,11.57295037]
[1746015714957,0.47301625,1804.0,1803.9,11.57295037]
[1746015715160,0.47301625,1804.0,1803.9,15.40095037]
[1746015715465,5.99243,1804.1,1804.0,1.10837]
[1746015715656,5.99243,1804.1,1804.0,11.57289037]